Workbook

Sheet MYP, MSS
B1: Antti Rossi | E1: 24.7.1985
B2: YKKÖSPESIS | E2: Runkosarja | L2: Runkosarja TOP-10 | Q2: Jatkosarjat | X2: SUOMENSARJA | AA2: Runkosarja | AH2: Runkosarja TOP-10 | AM2: Jatkosarjat
B3: Vuosi | C3: Sija | D3: Seura | E3: OTT | F3: KUN | G3: LÖI | H3: TOI | I3: KL | J3: KL-% | L3: LÖI | M3: TOI | N3: L+T | O3: KL | Q3: OTT | R3: KUN | S3: LÖI | T3: TOI | U3: KL | V3: KL-% | X3: Vuosi | Y3: Sija | Z3: Seura | AA3: OTT | AB3: KUN | AC3: LÖI | AD3: TOI | AE3: KL | AF3: KL-% | AH3: LÖI | AI3: TOI | AJ3: L+T | AK3: KL | AM3: OTT | AN3: KUN | AO3: LÖI | AP3: TOI | AQ3: KL | AR3: KL-%
X4: 2001 | Y4: 9. | Z4: LMV | AA4: 1 | AB4: 0 | AC4: 0 | AD4: 0 | AE4: 1 | AF4: 25.0 % | AG4: 4
X5: 2002 | Y5: 5. | Z5: Puhti | AA5: 10 | AB5: 1 | AC5: 8 | AD5: 2 | AE5: 20 | AF5: 35.1 % | AG5: 57
X6: 2003 | Y6: 9. | Z6: Puhti | AA6: 18 | AB6: 1 | AC6: 14 | AD6: 8 | AE6: 48 | AF6: 39.7 % | AG6: 121
B8: 2004 | C8: 1. | D8: KPL | E8: 3 | F8: 0 | G8: 1 | H8: 0 | I8: 3 | J8: 42.9 % | K8: 7
X10: 2010 | Y10: 8. | Z10: Espoo | AA10: 14 | AB10: 0 | AC10: 17 | AD10: 13 | AE10: 57 | AF10: 58.8 % | AG10: 97
B11: YHTEENSÄ | E11: =SUM(E4:E10) -> 3 | F11: =SUM(F4:F10) -> 0 | G11: =SUM(G4:G10) -> 1 | H11: =SUM(H4:H10) -> 0 | I11: =SUM(I4:I10) -> 3 | J11: =PRODUCT(I11/K11) -> 42.9 % | K11: =SUM(K4:K10) -> 7 | Q11: =SUM(Q4:Q10) -> 0 | R11: =SUM(R4:R10) -> 0 | S11: =SUM(S4:S10) -> 0 | T11: =SUM(T4:T10) -> 0 | U11: =SUM(U4:U10) -> 0 | V11: 0.0 % | W11: =SUM(W4:W10) -> 0 | X11: YHTEENSÄ | AA11: =SUM(AA4:AA10) -> 43 | AB11: =SUM(AB4:AB10) -> 2 | AC11: =SUM(AC4:AC10) -> 39 | AD11: =SUM(AD4:AD10) -> 23 | AE11: =SUM(AE4:AE10) -> 126 | AF11: =PRODUCT(AE11/AG11) -> 45.2 % | AG11: =SUM(AG4:AG10) -> 279 | AM11: =SUM(AM4:AM10) -> 0 | AN11: =SUM(AN4:AN10) -> 0 | AO11: =SUM(AO4:AO10) -> 0 | AP11: =SUM(AP4:AP10) -> 0 | AQ11: =SUM(AQ4:AQ10) -> 0 | AR11: 0.0 % | AS11: =SUM(AS4:AS10) -> 0
B13: KAIKKI OTTELUT | E13: OTT | F13: KUN | G13: LÖI | H13: TOI | I13: KL | J13: KL-% | L13: ka/L | M13: ka/T | N13: ka/l+t | O13: ka/kl | R13: Seurat | T13: LMV = Lahden Mailaveikot (1929)
B14: SUPERPESIS | E14: 0 | F14: 0 | G14: 0 | H14: 0 | I14: 0 | J14: 0.0 % | K14: 0 | L14: 0.00 | M14: 0.00 | N14: 0.00 | O14: 0.00 | T14: Puhti = Kuusankosken Puhti (19010)
B15: YKKÖSPESIS | E15: =PRODUCT(E11+Q11) -> 3 | F15: =PRODUCT(F11+R11) -> 0 | G15: =PRODUCT(G11+S11) -> 1 | H15: =PRODUCT(H11+T11) -> 0 | I15: =PRODUCT(I11+U11) -> 3 | J15: =PRODUCT(I15/K15) -> 42.9 % | K15: =PRODUCT(K11+W11) -> 7 | L15: =PRODUCT((F15+G15)/E15) -> 0.33 | M15: =PRODUCT(H15/E15) -> 0.00 | N15: =PRODUCT((F15+G15+H15)/E15) -> 0.33 | O15: =PRODUCT(I15/E15) -> 1.00 | T15: KPL = Kouvolan Pallonlyöjät (1931)
B16: SUOMENSARJA | E16: =PRODUCT(AA11+AM11) -> 43 | F16: =PRODUCT(AB11+AN11) -> 2 | G16: =PRODUCT(AC11+AO11) -> 39 | H16: =PRODUCT(AD11+AP11) -> 23 | I16: =PRODUCT(AE11+AQ11) -> 126 | J16: =PRODUCT(I16/K16) -> 45.2 % | K16: =PRODUCT(AG11+AS11) -> 279 | L16: =PRODUCT((F16+G16)/E16) -> 0.95 | M16: =PRODUCT(H16/E16) -> 0.53 | N16: =PRODUCT((F16+G16+H16)/E16) -> 1.49 | O16: =PRODUCT(I16/E16) -> 2.93 | T16: Espoo = Espoon Pesis (1995)
B17: YHTEENSÄ | E17: =SUM(E14:E16) -> 46 | F17: =SUM(F14:F16) -> 2 | G17: 40 | H17: 23 | I17: 129 | J17: =PRODUCT(I17/K17) -> 45.1 % | K17: =SUM(K14:K16) -> 286 | L17: =PRODUCT((F17+G17)/E17) -> 0.91 | M17: =PRODUCT(H17/E17) -> 0.50 | N17: =PRODUCT((F17+G17+H17)/E17) -> 1.41 | O17: =PRODUCT(I17/E17) -> 2.80
